[Event "January 9 Early 2024"]
[Site "https://www.chess.com"]
[Date "2024.01.11"]
[Round "1"]
[White "Volkov, Maksim"]
[Black "Bhagyashree Patil"]
[Result "1-0"]
[Board "130"]
[TimeControl "180+1"]
[WhiteFideId "54123070"]
[BlackFideId "25053256"]
[WhiteElo "2661"]
[BlackElo "2335"]
[WhiteTeam "RUS"]
[BlackTeam "IND"]
[WhiteClock "0:00:42"]
[BlackClock "0:00:03"]

1. e4 {[%clk 0:03:00]}  e5 {[%clk 0:02:57]} 2. Nf3 {[%clk 0:03:00]}  Nc6 {[%clk 0:02:56]} 3. Bc4 {[%clk 0:03:00]}  Nf6 {[%clk 0:02:53]} 4. d3 {[%clk 0:02:58]}  h6 {[%clk 0:02:51]} 5. O-O {[%clk 0:02:54]}  d6 {[%clk 0:02:47]} 6. Nc3 {[%clk 0:02:50]}  Be7 {[%clk 0:02:47]} 7. a4 {[%clk 0:02:46]}  Bg4 {[%clk 0:02:43]} 8. h3 {[%clk 0:02:44]}  Bh5 {[%clk 0:02:33]} 9. g4 {[%clk 0:02:44]}  Nxg4 {[%clk 0:02:29]} 10. hxg4 {[%clk 0:02:43]}  Bxg4 {[%clk 0:02:29]} 11. Be3 {[%clk 0:02:40]}  Bg5 {[%clk 0:02:25]} 12. Kg2 {[%clk 0:02:35]}  Qf6 {[%clk 0:02:21]} 13. Rh1 {[%clk 0:02:16]}  O-O-O {[%clk 0:01:56]} 14. Nd5 {[%clk 0:01:46]}  Qg6 {[%clk 0:01:56]} 15. Bxg5 {[%clk 0:01:47]}  hxg5 {[%clk 0:01:50]} 16. Qd2 {[%clk 0:01:47]}  f5 {[%clk 0:01:20]} 17. Qe3 {[%clk 0:01:01]}  f4 {[%clk 0:00:44]} 18. Qxa7 {[%clk 0:01:01]}  Bxf3+ {[%clk 0:00:21]} 19. Kxf3 {[%clk 0:01:01]}  g4+ {[%clk 0:00:22]} 20. Ke2 {[%clk 0:01:02]}  g3 {[%clk 0:00:14]} 21. Rxh8 {[%clk 0:00:46]}  Rxh8 {[%clk 0:00:05]} 22. Qa8+ {[%clk 0:00:46]}  Kd7 {[%clk 0:00:05]} 23. Qxh8 {[%clk 0:00:46]}  Qg4+ {[%clk 0:00:03]} 24. f3 {[%clk 0:00:46]}  Nd4+ {[%clk 0:00:03]} 25. Kd2 {[%clk 0:00:47]}  Qxf3 {[%clk 0:00:03]} 26. Qxg7+ {[%clk 0:00:42]} 1-0

[Event "January 9 Early 2024"]
[Site "https://www.chess.com"]
[Date "2024.01.11"]
[Round "1"]
[White "Aravindh, Chithambaram VR."]
[Black "Senthilkumar, Pranav"]
[Result "1-0"]
[Board "132"]
[TimeControl "180+1"]
[WhiteFideId "5072786"]
[BlackFideId "2083477"]
[WhiteElo "2935"]
[BlackElo "2500"]
[WhiteTeam "IND"]
[BlackTeam "USA"]
[WhiteClock "0:00:25"]
[BlackClock "0:00:16"]

1. b3 {[%clk 0:03:00]}  Nf6 {[%clk 0:02:59]} 2. Bb2 {[%clk 0:03:01]}  e6 {[%clk 0:02:58]} 3. Nf3 {[%clk 0:03:01]}  d5 {[%clk 0:02:58]} 4. c4 {[%clk 0:03:01]}  Be7 {[%clk 0:02:58]} 5. e3 {[%clk 0:02:58]}  O-O {[%clk 0:02:57]} 6. Nc3 {[%clk 0:02:57]}  b6 {[%clk 0:02:56]} 7. cxd5 {[%clk 0:02:57]}  Nxd5 {[%clk 0:02:56]} 8. Nxd5 {[%clk 0:02:55]}  Qxd5 {[%clk 0:02:55]} 9. Qc2 {[%clk 0:02:53]}  Bb7 {[%clk 0:02:53]} 10. Bc4 {[%clk 0:02:43]}  Qd8 {[%clk 0:02:50]} 11. h4 {[%clk 0:02:42]}  Bf6 {[%clk 0:02:22]} 12. Ng5 {[%clk 0:02:13]}  g6 {[%clk 0:02:20]} 13. f4 {[%clk 0:01:48]}  Nc6 {[%clk 0:02:19]} 14. h5 {[%clk 0:01:32]}  Nb4 {[%clk 0:02:11]} 15. Qb1 {[%clk 0:01:27]}  Bxg5 {[%clk 0:02:00]} 16. hxg6 {[%clk 0:01:24]}  Bh4+ {[%clk 0:01:53]} 17. g3 {[%clk 0:00:57]}  Nd3+ {[%clk 0:00:29]} 18. Qxd3 {[%clk 0:00:43]}  Qxd3 {[%clk 0:00:25]} 19. Bxd3 {[%clk 0:00:43]}  fxg6 {[%clk 0:00:20]} 20. Rxh4 {[%clk 0:00:42]}  Rad8 {[%clk 0:00:18]} 21. Bc4 {[%clk 0:00:38]}  Bd5 {[%clk 0:00:18]} 22. Rc1 {[%clk 0:00:37]}  c5 {[%clk 0:00:18]} 23. Ke2 {[%clk 0:00:31]}  h5 {[%clk 0:00:16]} 24. g4 {[%clk 0:00:30]}  hxg4 {[%clk 0:00:16]} 25. Rh8+ {[%clk 0:00:24]}  Kf7 {[%clk 0:00:16]} 26. Rh7+ {[%clk 0:00:25]}  Ke8 {[%clk 0:00:16]} 27. Bb5+ {[%clk 0:00:25]} 1-0

[Event "January 9 Early 2024"]
[Site "https://www.chess.com"]
[Date "2024.01.11"]
[Round "1"]
[White "Sanal, Vahap"]
[Black "Dushyant Sharma"]
[Result "1-0"]
[Board "133"]
[TimeControl "180+1"]
[WhiteFideId "6300545"]
[BlackFideId "25065130"]
[WhiteElo "2932"]
[BlackElo "2496"]
[WhiteTeam "TUR"]
[BlackTeam "IND"]
[WhiteClock "0:00:41"]
[BlackClock "0:00:06"]

1. e4 {[%clk 0:03:00]}  d5 {[%clk 0:02:59]} 2. exd5 {[%clk 0:03:00]}  Nf6 {[%clk 0:02:59]} 3. d4 {[%clk 0:02:58]}  Bg4 {[%clk 0:03:00]} 4. f3 {[%clk 0:02:44]}  Bf5 {[%clk 0:02:55]} 5. Bb5+ {[%clk 0:02:37]}  c6 {[%clk 0:02:55]} 6. dxc6 {[%clk 0:02:35]}  Nxc6 {[%clk 0:02:55]} 7. Ne2 {[%clk 0:02:29]}  e6 {[%clk 0:02:56]} 8. O-O {[%clk 0:02:29]}  Be7 {[%clk 0:02:54]} 9. c3 {[%clk 0:02:20]}  O-O {[%clk 0:02:54]} 10. Bd3 {[%clk 0:02:17]}  Bxd3 {[%clk 0:02:53]} 11. Qxd3 {[%clk 0:02:17]}  Qb6 {[%clk 0:02:54]} 12. Nd2 {[%clk 0:02:09]}  Rac8 {[%clk 0:02:50]} 13. Ne4 {[%clk 0:01:51]}  Rfd8 {[%clk 0:02:37]} 14. Bg5 {[%clk 0:01:31]}  Nxe4 {[%clk 0:00:44]} 15. Bxe7 {[%clk 0:01:30]}  Nc5 {[%clk 0:00:37]} 16. Bxd8 {[%clk 0:01:23]}  Rxd8 {[%clk 0:00:24]} 17. Qc2 {[%clk 0:01:08]}  Nd7 {[%clk 0:00:18]} 18. Kh1 {[%clk 0:01:08]}  Nf6 {[%clk 0:00:18]} 19. Rad1 {[%clk 0:01:03]}  Nd5 {[%clk 0:00:17]} 20. Rd3 {[%clk 0:01:00]}  Rc8 {[%clk 0:00:15]} 21. a3 {[%clk 0:01:00]}  h6 {[%clk 0:00:14]} 22. c4 {[%clk 0:00:59]}  Na5 {[%clk 0:00:13]} 23. c5 {[%clk 0:00:56]}  Qa6 {[%clk 0:00:12]} 24. b4 {[%clk 0:00:51]}  Nc4 {[%clk 0:00:12]} 25. Qb3 {[%clk 0:00:43]}  Nce3 {[%clk 0:00:06]} 26. Rxe3 {[%clk 0:00:41]} 1-0

[Event "January 9 Early 2024"]
[Site "https://www.chess.com"]
[Date "2024.01.11"]
[Round "1"]
[White "Balla, Tamas-Kristof"]
[Black "Szpar, Milosz"]
[Result "0-1"]
[Board "134"]
[TimeControl "180+1"]
[WhiteFideId "1208497"]
[BlackFideId "1184989"]
[WhiteElo "2464"]
[BlackElo "2857"]
[WhiteTeam "ROU"]
[BlackTeam "POL"]
[WhiteClock "0:00:02"]
[BlackClock "0:00:32"]

1. e4 {[%clk 0:03:00]}  c5 {[%clk 0:02:59]} 2. c3 {[%clk 0:03:00]}  e6 {[%clk 0:02:58]} 3. d4 {[%clk 0:03:00]}  d5 {[%clk 0:02:59]} 4. exd5 {[%clk 0:03:01]}  exd5 {[%clk 0:02:59]} 5. Nf3 {[%clk 0:03:01]}  Nc6 {[%clk 0:02:59]} 6. Bb5 {[%clk 0:03:01]}  Nf6 {[%clk 0:02:59]} 7. O-O {[%clk 0:02:59]}  Bd6 {[%clk 0:02:59]} 8. dxc5 {[%clk 0:02:58]}  Bxc5 {[%clk 0:03:00]} 9. Nbd2 {[%clk 0:02:56]}  O-O {[%clk 0:03:00]} 10. Nb3 {[%clk 0:02:56]}  Bb6 {[%clk 0:03:00]} 11. Nbd4 {[%clk 0:02:56]}  Bd7 {[%clk 0:02:51]} 12. Bd3 {[%clk 0:02:52]}  h6 {[%clk 0:02:49]} 13. h3 {[%clk 0:02:49]}  Ne4 {[%clk 0:02:42]} 14. Bf4 {[%clk 0:02:36]}  Qf6 {[%clk 0:02:36]} 15. Be3 {[%clk 0:02:24]}  Rfe8 {[%clk 0:02:19]} 16. Bc2 {[%clk 0:02:17]}  Rad8 {[%clk 0:01:56]} 17. Re1 {[%clk 0:02:07]}  Bc7 {[%clk 0:01:48]} 18. Nxc6 {[%clk 0:01:44]}  bxc6 {[%clk 0:01:49]} 19. Bd4 {[%clk 0:01:45]}  Qd6 {[%clk 0:01:30]} 20. Qd3 {[%clk 0:01:19]}  Bf5 {[%clk 0:01:30]} 21. Qa6 {[%clk 0:01:13]}  Ng5 {[%clk 0:01:24]} 22. Rxe8+ {[%clk 0:00:11]}  Rxe8 {[%clk 0:01:24]} 23. Ne5 {[%clk 0:00:11]}  Bxc2 {[%clk 0:01:12]} 24. f4 {[%clk 0:00:10]}  Ne6 {[%clk 0:00:55]} 25. Qxa7 {[%clk 0:00:10]}  Nxf4 {[%clk 0:00:47]} 26. Nf3 {[%clk 0:00:06]}  Nxh3+ {[%clk 0:00:34]} 27. Kf1 {[%clk 0:00:02]}  Bd3# {[%clk 0:00:32]} 0-1

[Event "January 9 Early 2024"]
[Site "https://www.chess.com"]
[Date "2024.01.11"]
[Round "1"]
[White "Begunov, Konstantin"]
[Black "Sonis, Francesco"]
[Result "1-0"]
[Board "135"]
[TimeControl "180+1"]
[WhiteFideId "4118510"]
[BlackFideId "895733"]
[WhiteElo "2463"]
[BlackElo "2809"]
[WhiteTeam "RUS"]
[BlackTeam "ITA"]
[WhiteClock "0:00:37"]
[BlackClock "0:00:46"]

1. d4 {[%clk 0:03:00]}  Nf6 {[%clk 0:02:59]} 2. c4 {[%clk 0:03:00]}  g6 {[%clk 0:02:51]} 3. f3 {[%clk 0:03:00]}  c5 {[%clk 0:02:46]} 4. dxc5 {[%clk 0:02:59]}  Qa5+ {[%clk 0:02:45]} 5. Nc3 {[%clk 0:02:58]}  Qxc5 {[%clk 0:02:45]} 6. e4 {[%clk 0:02:58]}  Bg7 {[%clk 0:02:44]} 7. Qd3 {[%clk 0:02:57]}  Nc6 {[%clk 0:02:43]} 8. Be3 {[%clk 0:02:58]}  Qa5 {[%clk 0:02:43]} 9. Qd2 {[%clk 0:02:56]}  O-O {[%clk 0:02:42]} 10. Nge2 {[%clk 0:02:54]}  d6 {[%clk 0:02:42]} 11. Nd4 {[%clk 0:02:53]}  Nxd4 {[%clk 0:02:41]} 12. Bxd4 {[%clk 0:02:54]}  Be6 {[%clk 0:02:41]} 13. Be2 {[%clk 0:02:46]}  Rfc8 {[%clk 0:02:42]} 14. b3 {[%clk 0:02:46]}  a6 {[%clk 0:02:33]} 15. Rd1 {[%clk 0:02:39]}  b5 {[%clk 0:02:30]} 16. Nd5 {[%clk 0:01:33]}  Qxd2+ {[%clk 0:02:28]} 17. Rxd2 {[%clk 0:01:34]}  Bxd5 {[%clk 0:02:27]} 18. cxd5 {[%clk 0:01:03]}  Nd7 {[%clk 0:02:12]} 19. Bxg7 {[%clk 0:01:01]}  Kxg7 {[%clk 0:02:12]} 20. Kd1 {[%clk 0:00:44]}  g5 {[%clk 0:02:04]} 21. Rc2 {[%clk 0:00:44]}  Rxc2 {[%clk 0:01:44]} 22. Kxc2 {[%clk 0:00:45]}  Kf6 {[%clk 0:01:43]} 23. Kd2 {[%clk 0:00:42]}  b4 {[%clk 0:01:41]} 24. Rc1 {[%clk 0:00:41]}  Nc5 {[%clk 0:01:35]} 25. Ke3 {[%clk 0:00:37]}  a5 {[%clk 0:00:46]} 26. Rc4 {[%clk 0:00:37]} 1-0

[Event "January 9 Early 2024"]
[Site "https://www.chess.com"]
[Date "2024.01.11"]
[Round "1"]
[White "Boruchovsky, Avital"]
[Black "Mesquita, Eduardo Barbosa"]
[Result "1-0"]
[Board "137"]
[TimeControl "180+1"]
[WhiteFideId "2800055"]
[BlackFideId "22757163"]
[WhiteElo "2790"]
[BlackElo "2435"]
[WhiteTeam "ISR"]
[BlackTeam "BRA"]
[WhiteClock "0:00:36"]
[BlackClock "0:00:09"]

1. e4 {[%clk 0:03:00]}  c5 {[%clk 0:02:44]} 2. Nc3 {[%clk 0:02:59]}  e6 {[%clk 0:02:36]} 3. Nf3 {[%clk 0:02:56]}  a6 {[%clk 0:02:35]} 4. g3 {[%clk 0:02:55]}  d5 {[%clk 0:02:35]} 5. Bg2 {[%clk 0:02:51]}  d4 {[%clk 0:02:21]} 6. Ne2 {[%clk 0:02:51]}  Nf6 {[%clk 0:02:16]} 7. d3 {[%clk 0:02:49]}  Nc6 {[%clk 0:02:09]} 8. O-O {[%clk 0:02:46]}  Be7 {[%clk 0:02:06]} 9. Nd2 {[%clk 0:02:25]}  O-O {[%clk 0:01:48]} 10. a4 {[%clk 0:02:25]}  b6 {[%clk 0:01:42]} 11. f4 {[%clk 0:02:10]}  Bb7 {[%clk 0:01:40]} 12. h3 {[%clk 0:02:09]}  Re8 {[%clk 0:01:40]} 13. g4 {[%clk 0:02:05]}  b5 {[%clk 0:01:33]} 14. Ng3 {[%clk 0:01:59]}  Nd7 {[%clk 0:01:26]} 15. g5 {[%clk 0:01:39]}  g6 {[%clk 0:01:20]} 16. h4 {[%clk 0:01:36]}  h5 {[%clk 0:00:55]} 17. b3 {[%clk 0:01:18]}  Rc8 {[%clk 0:00:41]} 18. e5 {[%clk 0:01:02]}  Na5 {[%clk 0:00:38]} 19. Nde4 {[%clk 0:00:58]}  c4 {[%clk 0:00:34]} 20. axb5 {[%clk 0:00:53]}  axb5 {[%clk 0:00:26]} 21. Bd2 {[%clk 0:00:52]}  c3 {[%clk 0:00:20]} 22. Be1 {[%clk 0:00:48]}  Nc6 {[%clk 0:00:20]} 23. Nf6+ {[%clk 0:00:42]}  Nxf6 {[%clk 0:00:19]} 24. gxf6 {[%clk 0:00:43]}  Bf8 {[%clk 0:00:13]} 25. Nxh5 {[%clk 0:00:41]}  gxh5 {[%clk 0:00:13]} 26. Qxh5 {[%clk 0:00:41]}  Na5 {[%clk 0:00:12]} 27. Bxb7 {[%clk 0:00:37]}  Nxb7 {[%clk 0:00:10]} 28. Rf3 {[%clk 0:00:37]}  Bg7 {[%clk 0:00:09]} 29. Rg3 {[%clk 0:00:36]} 1-0

[Event "January 9 Early 2024"]
[Site "https://www.chess.com"]
[Date "2024.01.11"]
[Round "1"]
[White "Modric, Nesa"]
[Black "Rojas Salas, Steven"]
[Result "0-1"]
[Board "138"]
[TimeControl "180+1"]
[WhiteFideId "922579"]
[BlackFideId "3819434"]
[WhiteElo "2212"]
[BlackElo "2599"]
[WhiteTeam "SRB"]
[BlackTeam "PER"]
[WhiteClock "0:00:05"]
[BlackClock "0:00:57"]

1. d4 {[%clk 0:03:00]}  d5 {[%clk 0:02:59]} 2. Bg5 {[%clk 0:02:58]}  Nf6 {[%clk 0:02:55]} 3. Bxf6 {[%clk 0:02:57]}  exf6 {[%clk 0:02:56]} 4. g3 {[%clk 0:02:56]}  Bd6 {[%clk 0:02:55]} 5. Bg2 {[%clk 0:02:56]}  O-O {[%clk 0:02:55]} 6. Qd3 {[%clk 0:02:48]}  Re8 {[%clk 0:02:51]} 7. Nf3 {[%clk 0:02:42]}  f5 {[%clk 0:02:45]} 8. O-O {[%clk 0:02:39]}  Nd7 {[%clk 0:02:39]} 9. e3 {[%clk 0:02:38]}  Nf6 {[%clk 0:02:37]} 10. c4 {[%clk 0:02:37]}  dxc4 {[%clk 0:02:36]} 11. Qxc4 {[%clk 0:02:37]}  c6 {[%clk 0:02:36]} 12. Nc3 {[%clk 0:02:35]}  Be6 {[%clk 0:02:30]} 13. Qa4 {[%clk 0:02:34]}  Qe7 {[%clk 0:02:26]} 14. a3 {[%clk 0:02:34]}  Nd5 {[%clk 0:02:24]} 15. Qc2 {[%clk 0:02:30]}  Qd7 {[%clk 0:02:16]} 16. Rac1 {[%clk 0:02:27]}  h6 {[%clk 0:02:02]} 17. Rfd1 {[%clk 0:02:17]}  Rad8 {[%clk 0:02:01]} 18. b4 {[%clk 0:02:11]}  Bf8 {[%clk 0:01:52]} 19. Ne5 {[%clk 0:02:06]}  Qc8 {[%clk 0:01:47]} 20. Qa4 {[%clk 0:01:35]}  a6 {[%clk 0:01:43]} 21. Qc2 {[%clk 0:01:13]}  g6 {[%clk 0:01:41]} 22. Na4 {[%clk 0:01:07]}  Qc7 {[%clk 0:01:34]} 23. Nc5 {[%clk 0:01:04]}  Bc8 {[%clk 0:01:34]} 24. Ncd3 {[%clk 0:00:54]}  Bg7 {[%clk 0:01:33]} 25. h4 {[%clk 0:00:50]}  Nf6 {[%clk 0:01:31]} 26. Qb3 {[%clk 0:00:44]}  Be6 {[%clk 0:01:30]} 27. Qc2 {[%clk 0:00:39]}  Kh7 {[%clk 0:01:30]} 28. Nc5 {[%clk 0:00:37]}  Bc8 {[%clk 0:01:28]} 29. Qb3 {[%clk 0:00:33]}  Re7 {[%clk 0:01:26]} 30. a4 {[%clk 0:00:31]}  Nd5 {[%clk 0:01:23]} 31. Ned3 {[%clk 0:00:25]}  Nxe3 {[%clk 0:01:09]} 32. Nf4 {[%clk 0:00:19]}  Nxd1 {[%clk 0:01:07]} 33. Rxd1 {[%clk 0:00:19]}  Bxd4 {[%clk 0:01:07]} 34. Ncd3 {[%clk 0:00:13]}  a5 {[%clk 0:01:00]} 35. b5 {[%clk 0:00:12]}  Qb6 {[%clk 0:00:59]} 36. Qc4 {[%clk 0:00:05]}  Bd7 {[%clk 0:00:57]} 0-1

[Event "January 9 Early 2024"]
[Site "https://www.chess.com"]
[Date "2024.01.11"]
[Round "1"]
[White "Nakamura, Hikaru"]
[Black "Avramidou, Anastasia"]
[Result "1-0"]
[Board "140"]
[TimeControl "180+1"]
[WhiteFideId "2016192"]
[BlackFideId "4239873"]
[WhiteElo "3260"]
[BlackElo "2536"]
[WhiteTeam "USA"]
[BlackTeam "GRE"]
[WhiteClock "0:00:53"]
[BlackClock "0:00:01"]

1. Nf3 {[%clk 0:03:00]}  Nf6 {[%clk 0:02:59]} 2. g3 {[%clk 0:03:01]}  g6 {[%clk 0:02:59]} 3. Bg2 {[%clk 0:03:02]}  Bg7 {[%clk 0:03:00]} 4. d4 {[%clk 0:03:01]}  O-O {[%clk 0:03:00]} 5. O-O {[%clk 0:03:01]}  d5 {[%clk 0:03:00]} 6. c4 {[%clk 0:03:01]}  Nc6 {[%clk 0:03:00]} 7. Nbd2 {[%clk 0:02:52]}  a5 {[%clk 0:02:58]} 8. e3 {[%clk 0:02:50]}  a4 {[%clk 0:02:55]} 9. Qe2 {[%clk 0:02:50]}  h6 {[%clk 0:02:42]} 10. Rd1 {[%clk 0:02:50]}  Re8 {[%clk 0:02:23]} 11. cxd5 {[%clk 0:02:46]}  Nxd5 {[%clk 0:02:22]} 12. e4 {[%clk 0:02:46]}  Nb6 {[%clk 0:02:22]} 13. d5 {[%clk 0:02:46]}  Nb4 {[%clk 0:02:09]} 14. a3 {[%clk 0:02:43]}  Na6 {[%clk 0:02:10]} 15. Nc4 {[%clk 0:02:41]}  Nc5 {[%clk 0:01:55]} 16. Be3 {[%clk 0:02:41]}  Nb3 {[%clk 0:01:55]} 17. Nxb6 {[%clk 0:02:36]}  cxb6 {[%clk 0:01:54]} 18. Rab1 {[%clk 0:02:37]}  Bd7 {[%clk 0:01:37]} 19. Nd4 {[%clk 0:02:22]}  Nxd4 {[%clk 0:01:37]} 20. Bxd4 {[%clk 0:02:22]}  b5 {[%clk 0:01:18]} 21. e5 {[%clk 0:02:02]}  Bf5 {[%clk 0:01:14]} 22. Rbc1 {[%clk 0:01:57]}  b4 {[%clk 0:00:35]} 23. axb4 {[%clk 0:01:55]}  a3 {[%clk 0:00:36]} 24. bxa3 {[%clk 0:01:55]}  Rxa3 {[%clk 0:00:36]} 25. h3 {[%clk 0:01:21]}  g5 {[%clk 0:00:30]} 26. g4 {[%clk 0:01:20]}  Bg6 {[%clk 0:00:30]} 27. Qb5 {[%clk 0:01:17]}  Qa8 {[%clk 0:00:14]} 28. d6 {[%clk 0:01:14]}  exd6 {[%clk 0:00:13]} 29. exd6 {[%clk 0:01:14]}  Bxd4 {[%clk 0:00:11]} 30. Rxd4 {[%clk 0:01:15]}  Rd8 {[%clk 0:00:06]} 31. d7 {[%clk 0:01:15]}  Ra1 {[%clk 0:00:04]} 32. Qf1 {[%clk 0:01:10]}  Rxc1 {[%clk 0:00:02]} 33. Qxc1 {[%clk 0:01:10]}  Qb8 {[%clk 0:00:03]} 34. Qe3 {[%clk 0:01:09]}  Kf8 {[%clk 0:00:02]} 35. Bf1 {[%clk 0:01:09]}  Qc7 {[%clk 0:00:02]} 36. Bb5 {[%clk 0:01:09]}  b6 {[%clk 0:00:01]} 37. Rc4 {[%clk 0:01:02]}  Qb8 {[%clk 0:00:01]} 38. Qe8+ {[%clk 0:00:58]}  Kg7 {[%clk 0:00:01]} 39. Rc8 {[%clk 0:00:53]} 1-0

[Event "January 9 Early 2024"]
[Site "https://www.chess.com"]
[Date "2024.01.11"]
[Round "1"]
[White "Szczepanek, Radoslaw"]
[Black "Rozum, Ivan"]
[Result "0-1"]
[Board "141"]
[TimeControl "180+1"]
[WhiteFideId "1120395"]
[BlackFideId "24104272"]
[WhiteElo "2408"]
[BlackElo "2770"]
[WhiteTeam "POL"]
[BlackTeam "RUS"]
[WhiteClock "0:00:02"]
[BlackClock "0:00:28"]

1. e4 {[%clk 0:03:00]}  c5 {[%clk 0:02:58]} 2. Nc3 {[%clk 0:02:59]}  d6 {[%clk 0:02:55]} 3. d4 {[%clk 0:02:58]}  cxd4 {[%clk 0:02:55]} 4. Qxd4 {[%clk 0:02:58]}  Nc6 {[%clk 0:02:56]} 5. Qd2 {[%clk 0:02:58]}  g6 {[%clk 0:02:56]} 6. b3 {[%clk 0:02:57]}  Bh6 {[%clk 0:02:56]} 7. f4 {[%clk 0:02:56]}  Nf6 {[%clk 0:02:56]} 8. Bb2 {[%clk 0:02:45]}  O-O {[%clk 0:02:55]} 9. O-O-O {[%clk 0:02:32]}  e5 {[%clk 0:02:55]} 10. g3 {[%clk 0:02:19]}  Re8 {[%clk 0:02:54]} 11. Bg2 {[%clk 0:02:10]}  Bg4 {[%clk 0:02:50]} 12. Re1 {[%clk 0:01:59]}  exf4 {[%clk 0:02:38]} 13. gxf4 {[%clk 0:01:51]}  d5 {[%clk 0:02:34]} 14. Kb1 {[%clk 0:01:42]}  dxe4 {[%clk 0:02:21]} 15. Qxd8 {[%clk 0:01:38]}  Raxd8 {[%clk 0:02:22]} 16. Nce2 {[%clk 0:01:06]}  Nh5 {[%clk 0:02:13]} 17. Bh3 {[%clk 0:00:54]}  Bf3 {[%clk 0:02:00]} 18. Nxf3 {[%clk 0:00:29]}  exf3 {[%clk 0:02:01]} 19. Nc1 {[%clk 0:00:13]}  Nxf4 {[%clk 0:01:10]} 20. Rxe8+ {[%clk 0:00:12]}  Rxe8 {[%clk 0:01:10]} 21. Bd7 {[%clk 0:00:12]}  Re3 {[%clk 0:00:41]} 22. Nd3 {[%clk 0:00:04]}  Nxd3 {[%clk 0:00:38]} 23. cxd3 {[%clk 0:00:05]}  Rxd3 {[%clk 0:00:39]} 24. Bxc6 {[%clk 0:00:01]}  bxc6 {[%clk 0:00:40]} 25. Re1 {[%clk 0:00:02]}  f2 {[%clk 0:00:28]} 0-1

[Event "January 9 Early 2024"]
[Site "https://www.chess.com"]
[Date "2024.01.11"]
[Round "1"]
[White "Kubicka, Anna"]
[Black "Rohith Krishna S"]
[Result "0-1"]
[Board "143"]
[TimeControl "180+1"]
[WhiteFideId "1152254"]
[BlackFideId "46617051"]
[WhiteElo "2451"]
[BlackElo "2829"]
[WhiteTeam "POL"]
[BlackTeam "IND"]
[WhiteClock "0:00:03"]
[BlackClock "0:00:37"]

1. e4 {[%clk 0:03:00]}  e5 {[%clk 0:02:58]} 2. Nf3 {[%clk 0:03:01]}  Nc6 {[%clk 0:02:59]} 3. Bb5 {[%clk 0:03:01]}  Bc5 {[%clk 0:02:58]} 4. c3 {[%clk 0:03:00]}  Nge7 {[%clk 0:02:59]} 5. O-O {[%clk 0:02:58]}  O-O {[%clk 0:02:59]} 6. h3 {[%clk 0:02:58]}  Bb6 {[%clk 0:02:59]} 7. d4 {[%clk 0:02:54]}  d6 {[%clk 0:03:00]} 8. Be3 {[%clk 0:02:52]}  f5 {[%clk 0:02:54]} 9. exf5 {[%clk 0:02:40]}  Bxf5 {[%clk 0:02:53]} 10. Na3 {[%clk 0:02:31]}  Kh8 {[%clk 0:02:45]} 11. Nc4 {[%clk 0:02:30]}  e4 {[%clk 0:02:44]} 12. Nh4 {[%clk 0:02:17]}  d5 {[%clk 0:02:28]} 13. Nxb6 {[%clk 0:02:16]}  axb6 {[%clk 0:02:28]} 14. Bg5 {[%clk 0:02:09]}  Qd6 {[%clk 0:02:10]} 15. Qd2 {[%clk 0:01:28]}  h6 {[%clk 0:02:01]} 16. Bf4 {[%clk 0:01:13]}  Qd7 {[%clk 0:01:50]} 17. f3 {[%clk 0:01:03]}  exf3 {[%clk 0:01:48]} 18. Rxf3 {[%clk 0:00:59]}  Be4 {[%clk 0:01:48]} 19. Rg3 {[%clk 0:00:55]}  Ng8 {[%clk 0:01:33]} 20. Be5 {[%clk 0:00:48]}  Rf7 {[%clk 0:01:32]} 21. Re1 {[%clk 0:00:23]}  Bh7 {[%clk 0:01:12]} 22. Ng6+ {[%clk 0:00:19]}  Bxg6 {[%clk 0:01:10]} 23. Rxg6 {[%clk 0:00:20]}  Qf5 {[%clk 0:01:11]} 24. Bxc6 {[%clk 0:00:12]}  Qxg6 {[%clk 0:00:54]} 25. Bxd5 {[%clk 0:00:11]}  Rd7 {[%clk 0:00:51]} 26. Bxb7 {[%clk 0:00:11]}  Rxa2 {[%clk 0:00:50]} 27. Be4 {[%clk 0:00:12]}  Qg5 {[%clk 0:00:45]} 28. Bf4 {[%clk 0:00:09]}  Qb5 {[%clk 0:00:42]} 29. Bb1 {[%clk 0:00:07]}  Rxb2 {[%clk 0:00:41]} 30. Qd1 {[%clk 0:00:04]}  Qc6 {[%clk 0:00:38]} 31. Qd3 {[%clk 0:00:03]}  Qxg2# {[%clk 0:00:37]} 0-1